[Event "*** SCC Grand Prix: Titled Tuesday Blitz"]
[Site "Chess.com"]
[Date "2020.07.14"]
[Round "6"]
[White "temus_galaktionov"]
[Black "TigrVShlyape"]
[Result "1/2-1/2"]
[WhiteElo "2676"]
[BlackElo "2855"]
[TimeControl "180+1"]
[EndTime "11:07:19 PDT"]
[Termination "Game drawn by agreement"]

1. d4 {[%clk 0:03:00.9]} 1... Nf6 {[%clk 0:02:55.9]} 2. Nf3 {[%clk 0:03:01.1]}
2... g6 {[%clk 0:02:55.8]} 3. c4 {[%clk 0:03:01.7]} 3... Bg7 {[%clk 0:02:56.1]}
4. Nc3 {[%clk 0:03:02.6]} 4... O-O {[%clk 0:02:55.6]} 5. e4 {[%clk 0:03:01.8]}
5... d6 {[%clk 0:02:56.1]} 6. Be2 {[%clk 0:03:02.4]} 6... e5 {[%clk 0:02:55.1]}
7. O-O {[%clk 0:03:02.2]} 7... Nc6 {[%clk 0:02:54.4]} 8. d5 {[%clk 0:03:02.4]}
8... Ne7 {[%clk 0:02:54.1]} 9. Ne1 {[%clk 0:03:03.3]} 9... Nd7 {[%clk
0:02:52.8]} 10. f3 {[%clk 0:03:04.2]} 10... f5 {[%clk 0:02:51.3]} 11. g4 {[%clk
0:03:04.8]} 11... f4 {[%clk 0:02:46.7]} 12. h4 {[%clk 0:03:02.6]} 12... h5
{[%clk 0:02:34.8]} 13. g5 {[%clk 0:03:02.5]} 13... a5 {[%clk 0:02:30.1]} 14. Nd3
{[%clk 0:03:00.3]} 14... b6 {[%clk 0:02:22.5]} 15. Bd2 {[%clk 0:02:59]} 15...
Nc5 {[%clk 0:02:21.9]} 16. Nxc5 {[%clk 0:02:42.4]} 16... dxc5 {[%clk 0:02:14.9]}
17. Re1 {[%clk 0:02:41.3]} 17... Bd7 {[%clk 0:02:14.9]} 18. b3 {[%clk
0:02:39.8]} 18... Nc8 {[%clk 0:02:14.9]} 19. a3 {[%clk 0:02:39.1]} 19... Rf7
{[%clk 0:02:13.1]} 20. Bf1 {[%clk 0:02:32.7]} 20... Bf8 {[%clk 0:02:12.1]} 21.
Kh2 {[%clk 0:02:29.5]} 21... Bd6 {[%clk 0:01:50.9]} 22. Qe2 {[%clk 0:02:14.4]}
22... Bf8 {[%clk 0:01:45.1]} 23. Nd1 {[%clk 0:01:53.7]} 23... Nd6 {[%clk
0:01:43.2]} 24. Nf2 {[%clk 0:01:50]} 24... Bg7 {[%clk 0:01:32.7]} 25. Nd3 {[%clk
0:01:46.7]} 25... Qe7 {[%clk 0:01:30.7]} 26. Bc3 {[%clk 0:01:45]} 26... Rff8
{[%clk 0:01:28.8]} 27. Qb2 {[%clk 0:01:42.6]} 27... Rfe8 {[%clk 0:01:28.9]} 28.
Nf2 {[%clk 0:01:41.7]} 28... Qf7 {[%clk 0:01:24.4]} 29. b4 {[%clk 0:01:40.3]}
29... Nb7 {[%clk 0:01:20.2]} 30. Nd3 {[%clk 0:01:33.6]} 30... Qe7 {[%clk
0:01:17.1]} 31. Reb1 {[%clk 0:01:26.3]} 31... Kh7 {[%clk 0:01:13.3]} 32. Be1
{[%clk 0:01:15.4]} 32... Nd6 {[%clk 0:01:12]} 33. Qc2 {[%clk 0:01:13.3]} 33...
cxb4 {[%clk 0:00:40.2]} 34. axb4 {[%clk 0:01:14.2]} 34... axb4 {[%clk
0:00:39.8]} 35. Bxb4 {[%clk 0:01:11.6]} 35... Bf8 {[%clk 0:00:39]} 36. Qc3
{[%clk 0:00:57.3]} 36... Bg7 {[%clk 0:00:34.3]} 37. Qc2 {[%clk 0:00:41.6]} 37...
Qd8 {[%clk 0:00:33.3]} 38. Qb3 {[%clk 0:00:36.3]} 38... Nb7 {[%clk 0:00:30.7]}
39. Bc3 {[%clk 0:00:32]} 39... Qe7 {[%clk 0:00:29.4]} 40. Bb4 {[%clk 0:00:29.6]}
40... Qd8 {[%clk 0:00:28.1]} 41. c5 {[%clk 0:00:29.2]} 41... bxc5 {[%clk
0:00:27]} 42. Bc3 {[%clk 0:00:25.1]} 42... Rxa1 {[%clk 0:00:24.1]} 43. Rxa1
{[%clk 0:00:26]} 43... c4 {[%clk 0:00:22.4]} 44. Qxc4 {[%clk 0:00:24.6]} 44...
Nd6 {[%clk 0:00:22.8]} 45. Qc5 {[%clk 0:00:21.3]} 45... Qb8 {[%clk 0:00:21.8]}
46. Qb4 {[%clk 0:00:16.2]} 46... Nb5 {[%clk 0:00:20.8]} 47. Bb2 {[%clk
0:00:15.4]} 47... Nd4 {[%clk 0:00:20.3]} 1/2-1/2

[Event "*** SCC Grand Prix: Titled Tuesday Blitz"]
[Site "Chess.com"]
[Date "2020.07.14"]
[Round "6"]
[White "eljanov"]
[Black "731291"]
[Result "1/2-1/2"]
[WhiteElo "2844"]
[BlackElo "2668"]
[TimeControl "180+1"]
[EndTime "11:07:19 PDT"]
[Termination "Game drawn by repetition"]

1. e4 {[%clk 0:03:00.9]} 1... c5 {[%clk 0:02:59.6]} 2. Nf3 {[%clk 0:03:00.2]}
2... e6 {[%clk 0:02:59.5]} 3. d4 {[%clk 0:02:59.7]} 3... cxd4 {[%clk 0:03:00.4]}
4. Nxd4 {[%clk 0:03:00.2]} 4... Nc6 {[%clk 0:03:00.9]} 5. Nc3 {[%clk 0:03:00.5]}
5... Qc7 {[%clk 0:03:01.2]} 6. f4 {[%clk 0:02:59.5]} 6... a6 {[%clk 0:02:59.6]}
7. Nxc6 {[%clk 0:02:59.8]} 7... bxc6 {[%clk 0:02:59.4]} 8. Bd3 {[%clk
0:02:59.7]} 8... d5 {[%clk 0:02:59.5]} 9. O-O {[%clk 0:02:59.7]} 9... Nf6 {[%clk
0:02:58.5]} 10. Qe2 {[%clk 0:02:57.1]} 10... Be7 {[%clk 0:02:55.9]} 11. Kh1
{[%clk 0:02:57.4]} 11... O-O {[%clk 0:02:53.5]} 12. b3 {[%clk 0:02:55.9]} 12...
c5 {[%clk 0:02:45.6]} 13. f5 {[%clk 0:02:25.5]} 13... d4 {[%clk 0:02:32]} 14.
Na4 {[%clk 0:02:12.1]} 14... exf5 {[%clk 0:02:29.3]} 15. Bf4 {[%clk 0:02:00.9]}
15... Qc6 {[%clk 0:02:22.3]} 16. exf5 {[%clk 0:01:55.2]} 16... Bb7 {[%clk
0:02:20.5]} 17. Nb2 {[%clk 0:01:48.5]} 17... Rfe8 {[%clk 0:02:12.8]} 18. Nc4
{[%clk 0:01:48.7]} 18... Bd6 {[%clk 0:01:43.4]} 19. Qd2 {[%clk 0:01:45.5]} 19...
Bxf4 {[%clk 0:01:41.9]} 20. Rxf4 {[%clk 0:01:46.4]} 20... Nd5 {[%clk 0:01:37.8]}
21. Rg4 {[%clk 0:01:20.2]} 21... Ne3 {[%clk 0:01:32.2]} 22. Rg3 {[%clk
0:01:20.5]} 22... Nxc4 {[%clk 0:01:27.8]} 23. Bxc4 {[%clk 0:01:20]} 23... Qf6
{[%clk 0:01:23.2]} 24. Rf1 {[%clk 0:01:09.6]} 24... Re5 {[%clk 0:01:23.2]} 25.
Kg1 {[%clk 0:01:06]} 25... Rae8 {[%clk 0:01:20.7]} 26. Qg5 {[%clk 0:00:51.8]}
26... Qxg5 {[%clk 0:01:14.8]} 27. Rxg5 {[%clk 0:00:52.7]} 27... Bd5 {[%clk
0:01:03.7]} 28. Bxa6 {[%clk 0:00:46]} 28... Ra8 {[%clk 0:01:00.5]} 29. Bd3
{[%clk 0:00:46.5]} 29... Rxa2 {[%clk 0:01:00.7]} 30. Rg3 {[%clk 0:00:44.4]}
30... f6 {[%clk 0:00:52.2]} 31. Rg4 {[%clk 0:00:37.9]} 31... Re3 {[%clk
0:00:41.6]} 32. Rg3 {[%clk 0:00:32]} 32... Re5 {[%clk 0:00:37.4]} 33. Rg4 {[%clk
0:00:30]} 33... Kf7 {[%clk 0:00:37]} 34. Rg3 {[%clk 0:00:19.9]} 34... Ra7 {[%clk
0:00:25]} 35. Rf4 {[%clk 0:00:19.1]} 35... Ra1+ {[%clk 0:00:22.8]} 36. Kf2
{[%clk 0:00:16.3]} 36... Rd1 {[%clk 0:00:19.6]} 37. Rfg4 {[%clk 0:00:11.6]}
37... Rd2+ {[%clk 0:00:17.5]} 38. Kf1 {[%clk 0:00:12]} 38... Rd1+ {[%clk
0:00:17.5]} 39. Kf2 {[%clk 0:00:12.4]} 39... Rd2+ {[%clk 0:00:16.5]} 40. Kf1
{[%clk 0:00:12.7]} 40... Rd1+ {[%clk 0:00:09.2]} 41. Kf2 {[%clk 0:00:13.1]}
1/2-1/2

[Event "*** SCC Grand Prix: Titled Tuesday Blitz"]
[Site "Chess.com"]
[Date "2020.07.14"]
[Round "6"]
[White "penguingm1"]
[Black "sergoy"]
[Result "1-0"]
[WhiteElo "2954"]
[BlackElo "2809"]
[TimeControl "180+1"]
[EndTime "11:07:21 PDT"]
[Termination "penguingm1 won on time"]

1. d4 {[%clk 0:03:00.9]} 1... Nf6 {[%clk 0:03:00]} 2. c4 {[%clk 0:03:00.5]} 2...
e6 {[%clk 0:02:59.9]} 3. Nc3 {[%clk 0:02:58.6]} 3... d5 {[%clk 0:02:59.6]} 4.
cxd5 {[%clk 0:02:59.5]} 4... Nxd5 {[%clk 0:02:59.4]} 5. e4 {[%clk 0:02:59.8]}
5... Nxc3 {[%clk 0:02:59.7]} 6. bxc3 {[%clk 0:03:00.7]} 6... c5 {[%clk
0:03:00.6]} 7. Nf3 {[%clk 0:03:00.8]} 7... cxd4 {[%clk 0:03:01.1]} 8. cxd4
{[%clk 0:03:01.7]} 8... Bb4+ {[%clk 0:03:01.1]} 9. Bd2 {[%clk 0:03:01.8]} 9...
Bxd2+ {[%clk 0:03:01.8]} 10. Qxd2 {[%clk 0:03:02.7]} 10... O-O {[%clk
0:03:01.8]} 11. Rc1 {[%clk 0:03:03.3]} 11... Nd7 {[%clk 0:03:01.2]} 12. Bb5
{[%clk 0:02:36.8]} 12... a6 {[%clk 0:02:59.7]} 13. Bd3 {[%clk 0:02:35.7]} 13...
b5 {[%clk 0:02:56.6]} 14. O-O {[%clk 0:02:21.1]} 14... Bb7 {[%clk 0:02:56.7]}
15. Qf4 {[%clk 0:02:20.8]} 15... Re8 {[%clk 0:02:27.7]} 16. h4 {[%clk
0:02:11.3]} 16... Qb8 {[%clk 0:01:39.7]} 17. e5 {[%clk 0:01:38]} 17... Bxf3
{[%clk 0:01:36.4]} 18. Qxf3 {[%clk 0:01:38.9]} 18... Nf8 {[%clk 0:01:36.3]} 19.
Rc6 {[%clk 0:01:25.3]} 19... Qd8 {[%clk 0:01:32.6]} 20. Qe4 {[%clk 0:01:14.1]}
20... Ra7 {[%clk 0:01:25.8]} 21. Rd1 {[%clk 0:00:56.6]} 21... Rd7 {[%clk
0:01:23.9]} 22. Rxa6 {[%clk 0:00:55.2]} 22... Rd5 {[%clk 0:00:59.4]} 23. Qe3
{[%clk 0:00:41.9]} 23... Qxh4 {[%clk 0:00:57]} 24. Be4 {[%clk 0:00:40.4]} 24...
Rdd8 {[%clk 0:00:55.1]} 25. Bc6 {[%clk 0:00:37.5]} 25... Re7 {[%clk 0:00:55.5]}
26. Bxb5 {[%clk 0:00:37.7]} 26... Ng6 {[%clk 0:00:49.7]} 27. g3 {[%clk
0:00:33.6]} 27... Qh3 {[%clk 0:00:49.3]} 28. Bf1 {[%clk 0:00:32.8]} 28... Qg4
{[%clk 0:00:48.4]} 29. Be2 {[%clk 0:00:33.3]} 29... Qh3 {[%clk 0:00:47.4]} 30.
Rc6 {[%clk 0:00:21.1]} 30... h5 {[%clk 0:00:46.2]} 31. Qe4 {[%clk 0:00:16.6]}
31... Red7 {[%clk 0:00:41]} 32. Rc3 {[%clk 0:00:09.8]} 32... Rd5 {[%clk
0:00:36.3]} 33. Rcd3 {[%clk 0:00:09.6]} 33... Ne7 {[%clk 0:00:20.4]} 34. Bf3
{[%clk 0:00:05.5]} 34... Nf5 {[%clk 0:00:20.6]} 35. Qf4 {[%clk 0:00:05.1]} 35...
R5d7 {[%clk 0:00:12.9]} 36. d5 {[%clk 0:00:05.4]} 36... h4 {[%clk 0:00:11]} 37.
Bg4 {[%clk 0:00:04.7]} 1-0

[Event "*** SCC Grand Prix: Titled Tuesday Blitz"]
[Site "Chess.com"]
[Date "2020.07.14"]
[Round "6"]
[White "Gabix_94"]
[Black "Bulldog167"]
[Result "1/2-1/2"]
[WhiteElo "2907"]
[BlackElo "2737"]
[TimeControl "180+1"]
[EndTime "11:07:21 PDT"]
[Termination "Game drawn by agreement"]

1. d4 {[%clk 0:03:00.5]} 1... Nf6 {[%clk 0:03:00.3]} 2. Nf3 {[%clk 0:03:00.4]}
2... e6 {[%clk 0:03:00.8]} 3. e3 {[%clk 0:03:00.1]} 3... b6 {[%clk 0:03:00.4]}
4. Bd3 {[%clk 0:02:59.8]} 4... Bb7 {[%clk 0:03:01]} 5. O-O {[%clk 0:02:58.6]}
5... d5 {[%clk 0:03:01.2]} 6. b3 {[%clk 0:02:58.9]} 6... Bd6 {[%clk 0:03:01.2]}
7. Bb2 {[%clk 0:02:57.2]} 7... O-O {[%clk 0:03:01.2]} 8. Nbd2 {[%clk 0:02:57.3]}
8... c5 {[%clk 0:03:01]} 9. Re1 {[%clk 0:02:55.3]} 9... Nc6 {[%clk 0:03:00.1]}
10. a3 {[%clk 0:02:51.9]} 10... cxd4 {[%clk 0:02:53.8]} 11. exd4 {[%clk
0:02:52.8]} 11... Ne7 {[%clk 0:02:54]} 12. Ne5 {[%clk 0:02:48.3]} 12... Ng6
{[%clk 0:02:53.9]} 13. Ndf3 {[%clk 0:02:48]} 13... Nf4 {[%clk 0:02:48.5]} 14.
Bf1 {[%clk 0:02:46]} 14... Ne4 {[%clk 0:02:47]} 15. g3 {[%clk 0:02:45.3]} 15...
Ng6 {[%clk 0:02:47]} 16. Bg2 {[%clk 0:02:43.5]} 16... Rc8 {[%clk 0:02:45.7]} 17.
c4 {[%clk 0:02:35]} 17... Nf6 {[%clk 0:02:44.9]} 18. Qe2 {[%clk 0:02:29.9]}
18... dxc4 {[%clk 0:02:38.6]} 19. bxc4 {[%clk 0:02:30.8]} 19... Bxe5 {[%clk
0:02:31.1]} 20. dxe5 {[%clk 0:02:26.3]} 20... Nd7 {[%clk 0:02:30.8]} 21. Rad1
{[%clk 0:02:25.4]} 21... Qe7 {[%clk 0:02:29.6]} 22. Rd6 {[%clk 0:02:19.3]} 22...
Rc7 {[%clk 0:01:44.3]} 23. Red1 {[%clk 0:02:13.1]} 23... Rfc8 {[%clk 0:01:44.5]}
24. h4 {[%clk 0:02:09.2]} 24... Ngf8 {[%clk 0:01:44.3]} 25. h5 {[%clk 0:02:06]}
25... h6 {[%clk 0:01:44.2]} 26. R6d4 {[%clk 0:01:58.9]} 26... Ba6 {[%clk
0:01:35.9]} 27. Nd2 {[%clk 0:01:55.8]} 27... Nc5 {[%clk 0:01:26]} 28. Rg4 {[%clk
0:01:50.1]} 28... Rd7 {[%clk 0:01:17]} 29. Bc3 {[%clk 0:01:42]} 29... Bb7 {[%clk
0:01:04]} 30. Bxb7 {[%clk 0:01:33.5]} 30... Rxb7 {[%clk 0:01:04.1]} 31. Nf3
{[%clk 0:01:31.2]} 31... Rd7 {[%clk 0:00:59.8]} 32. Rd6 {[%clk 0:01:27.3]} 32...
Rcd8 {[%clk 0:00:54.2]} 33. Kg2 {[%clk 0:01:24]} 33... Kh8 {[%clk 0:00:53.9]}
34. Qe3 {[%clk 0:01:21.5]} 34... Nh7 {[%clk 0:00:45]} 35. Rgd4 {[%clk
0:01:16.6]} 35... Nb7 {[%clk 0:00:42.1]} 36. Rxd7 {[%clk 0:01:13.1]} 36... Rxd7
{[%clk 0:00:42.4]} 37. Bb4 {[%clk 0:01:07.9]} 37... Qd8 {[%clk 0:00:33.9]} 38.
Rxd7 {[%clk 0:01:03.9]} 38... Qxd7 {[%clk 0:00:34.2]} 39. Qe4 {[%clk 0:01:00.8]}
39... Kg8 {[%clk 0:00:26.3]} 40. Nd2 {[%clk 0:00:53.6]} 40... Ng5 {[%clk
0:00:25.2]} 41. Qe3 {[%clk 0:00:51.8]} 41... Qc6+ {[%clk 0:00:24.9]} 42. f3
{[%clk 0:00:51.4]} 42... a5 {[%clk 0:00:25]} 43. Bc3 {[%clk 0:00:46.9]} 43...
Nc5 {[%clk 0:00:25.5]} 44. Bd4 {[%clk 0:00:46.4]} 44... Qa4 {[%clk 0:00:20.5]}
45. Bxc5 {[%clk 0:00:45.3]} 45... bxc5 {[%clk 0:00:21.4]} 46. Qb3 {[%clk
0:00:40.2]} 46... Qd7 {[%clk 0:00:18.3]} 47. Qb8+ {[%clk 0:00:35.8]} 47... Kh7
{[%clk 0:00:18.3]} 48. Qb1+ {[%clk 0:00:36.4]} 48... Kg8 {[%clk 0:00:18.9]}
1/2-1/2

[Event "*** SCC Grand Prix: Titled Tuesday Blitz"]
[Site "Chess.com"]
[Date "2020.07.14"]
[Round "6"]
[White "Vaathi_Coming"]
[Black "ValentinDragnev"]
[Result "1-0"]
[WhiteElo "2922"]
[BlackElo "2705"]
[TimeControl "180+1"]
[EndTime "11:07:21 PDT"]
[Termination "Vaathi_Coming won on time"]

1. f4 {[%clk 0:02:59.4]} 1... b6 {[%clk 0:02:58]} 2. b3 {[%clk 0:02:58.6]} 2...
Bb7 {[%clk 0:02:58.2]} 3. Bb2 {[%clk 0:02:56.9]} 3... Nf6 {[%clk 0:02:58.2]} 4.
Nf3 {[%clk 0:02:57]} 4... g6 {[%clk 0:02:58.4]} 5. g4 {[%clk 0:02:52.4]} 5...
Bg7 {[%clk 0:02:52]} 6. Bg2 {[%clk 0:02:51.5]} 6... O-O {[%clk 0:02:44.3]} 7. g5
{[%clk 0:02:48.3]} 7... Nh5 {[%clk 0:02:44.2]} 8. Bxg7 {[%clk 0:02:48.3]} 8...
Kxg7 {[%clk 0:02:45.1]} 9. e3 {[%clk 0:02:45.2]} 9... d6 {[%clk 0:02:23.7]} 10.
O-O {[%clk 0:02:32.1]} 10... e6 {[%clk 0:02:17.2]} 11. Nc3 {[%clk 0:02:25.6]}
11... Nd7 {[%clk 0:02:17]} 12. Qe1 {[%clk 0:02:07.2]} 12... Qe7 {[%clk
0:02:12.6]} 13. Qh4 {[%clk 0:01:58.3]} 13... f6 {[%clk 0:02:11]} 14. Ne2 {[%clk
0:01:56.4]} 14... fxg5 {[%clk 0:02:05.3]} 15. Qxg5 {[%clk 0:01:48.4]} 15... Rae8
{[%clk 0:01:56]} 16. Ned4 {[%clk 0:01:28.6]} 16... h6 {[%clk 0:01:33.2]} 17.
Qxe7+ {[%clk 0:01:23.5]} 17... Rxe7 {[%clk 0:01:34.1]} 18. Nxe6+ {[%clk
0:01:20.6]} 18... Rxe6 {[%clk 0:01:30.3]} 19. Nd4 {[%clk 0:01:20.9]} 19... Bxg2
{[%clk 0:00:30.7]} 20. Nxe6+ {[%clk 0:01:18.4]} 20... Kf7 {[%clk 0:00:31.1]} 21.
Nxf8 {[%clk 0:01:15.5]} 21... Bxf1 {[%clk 0:00:31]} 22. Nxd7 {[%clk 0:01:15.6]}
22... Ba6 {[%clk 0:00:27.2]} 23. a4 {[%clk 0:01:09.1]} 23... Ke7 {[%clk
0:00:20.5]} 24. Nb8 {[%clk 0:01:06.7]} 24... Bb7 {[%clk 0:00:20]} 25. b4 {[%clk
0:01:00.9]} 25... Nf6 {[%clk 0:00:14.1]} 26. b5 {[%clk 0:01:00.2]} 26... Ne4
{[%clk 0:00:14.4]} 27. d3 {[%clk 0:00:56.7]} 27... Nc3 {[%clk 0:00:13.5]} 28.
Kf2 {[%clk 0:00:36.8]} 28... Ke6 {[%clk 0:00:09.6]} 29. e4 {[%clk 0:00:33]}
29... d5 {[%clk 0:00:08.5]} 30. Ra3 {[%clk 0:00:25.2]} 30... Nb1 {[%clk
0:00:06]} 31. Ra1 {[%clk 0:00:19.5]} 31... Nc3 {[%clk 0:00:05]} 32. exd5+ {[%clk
0:00:16.6]} 32... Nxd5 {[%clk 0:00:04.3]} 33. Nc6 {[%clk 0:00:11.6]} 33... Bxc6
{[%clk 0:00:02.5]} 34. bxc6 {[%clk 0:00:12.5]} 34... Nxf4 {[%clk 0:00:02.4]} 35.
a5 {[%clk 0:00:13.1]} 35... Kd6 {[%clk 0:00:02.6]} 36. axb6 {[%clk 0:00:13.3]}
36... axb6 {[%clk 0:00:03.5]} 37. Ke3 {[%clk 0:00:11.9]} 37... Ne6 {[%clk
0:00:02.2]} 38. Rf1 {[%clk 0:00:10.9]} 1-0

[Event "*** SCC Grand Prix: Titled Tuesday Blitz"]
[Site "Chess.com"]
[Date "2020.07.14"]
[Round "6"]
[White "platy3"]
[Black "djano"]
[Result "1-0"]
[WhiteElo "2772"]
[BlackElo "2473"]
[TimeControl "180+1"]
[EndTime "11:07:21 PDT"]
[Termination "platy3 won on time"]

1. e4 {[%clk 0:03:00.9]} 1... g6 {[%clk 0:03:00]} 2. d4 {[%clk 0:02:56.8]} 2...
Bg7 {[%clk 0:03:00.2]} 3. Nc3 {[%clk 0:02:53.5]} 3... a6 {[%clk 0:02:59.4]} 4.
h4 {[%clk 0:02:51.4]} 4... h6 {[%clk 0:02:59]} 5. Be3 {[%clk 0:02:47.9]} 5... b5
{[%clk 0:02:56.9]} 6. Qd2 {[%clk 0:02:46.5]} 6... Bb7 {[%clk 0:02:56.8]} 7. f3
{[%clk 0:02:44.7]} 7... d6 {[%clk 0:02:56.7]} 8. O-O-O {[%clk 0:02:39.8]} 8...
Nd7 {[%clk 0:02:56.5]} 9. Nh3 {[%clk 0:02:16.5]} 9... Rc8 {[%clk 0:02:52.8]} 10.
Kb1 {[%clk 0:01:38.4]} 10... c5 {[%clk 0:02:47.1]} 11. dxc5 {[%clk 0:01:37.7]}
11... Nxc5 {[%clk 0:02:44.5]} 12. Bd4 {[%clk 0:01:36.6]} 12... Nf6 {[%clk
0:02:35.6]} 13. Nd5 {[%clk 0:01:27.7]} 13... Bxd5 {[%clk 0:01:38]} 14. exd5
{[%clk 0:01:27.4]} 14... O-O {[%clk 0:01:38.6]} 15. g4 {[%clk 0:01:16]} 15... e5
{[%clk 0:01:31.4]} 16. dxe6 {[%clk 0:01:11.7]} 16... Nxe6 {[%clk 0:01:31.3]} 17.
Be3 {[%clk 0:01:10.4]} 17... Re8 {[%clk 0:01:12.9]} 18. Bxh6 {[%clk 0:01:04.2]}
18... Bh8 {[%clk 0:01:13.3]} 19. h5 {[%clk 0:01:00.6]} 19... Nd7 {[%clk
0:00:49.3]} 20. hxg6 {[%clk 0:00:56.9]} 20... fxg6 {[%clk 0:00:49.6]} 21. Bg5
{[%clk 0:00:26]} 21... Qb6 {[%clk 0:00:34.2]} 22. Be3 {[%clk 0:00:20.2]} 22...
Ndc5 {[%clk 0:00:30.4]} 23. Nf2 {[%clk 0:00:12]} 23... Qb7 {[%clk 0:00:26.4]}
24. Ne4 {[%clk 0:00:07.7]} 24... Qg7 {[%clk 0:00:24.5]} 25. Rxh8+ {[%clk
0:00:04.6]} 25... Qxh8 {[%clk 0:00:22.6]} 26. Nxd6 {[%clk 0:00:04.2]} 26... Red8
{[%clk 0:00:18.8]} 27. Qd5 {[%clk 0:00:02.3]} 27... Qf6 {[%clk 0:00:12]} 28. g5
{[%clk 0:00:02.7]} 28... Qe7 {[%clk 0:00:10.9]} 29. Bh3 {[%clk 0:00:03]} 29...
Re8 {[%clk 0:00:06.9]} 30. Bxc5 {[%clk 0:00:02.5]} 30... Rxc5 {[%clk 0:00:06.3]}
31. Bxe6+ {[%clk 0:00:03]} 31... Qxe6 {[%clk 0:00:07.2]} 32. Qxc5 {[%clk
0:00:03.5]} 32... Qe2 {[%clk 0:00:06]} 33. Qd5+ {[%clk 0:00:03.8]} 33... Re6
{[%clk 0:00:05.6]} 34. a3 {[%clk 0:00:03.7]} 34... Qxf3 {[%clk 0:00:04.6]} 35.
Qxf3 {[%clk 0:00:03.6]} 1-0

[Event "*** SCC Grand Prix: Titled Tuesday Blitz"]
[Site "Chess.com"]
[Date "2020.07.14"]
[Round "6"]
[White "theblitzchamp"]
[Black "talman67"]
[Result "1-0"]
[WhiteElo "2648"]
[BlackElo "2477"]
[TimeControl "180+1"]
[EndTime "11:07:21 PDT"]
[Termination "theblitzchamp won on time"]

1. d4 {[%clk 0:03:00.9]} 1... Nf6 {[%clk 0:02:59.8]} 2. Bf4 {[%clk 0:03:01.3]}
2... e6 {[%clk 0:02:58.8]} 3. e3 {[%clk 0:03:01.4]} 3... c5 {[%clk 0:02:59.4]}
4. Nf3 {[%clk 0:03:00.6]} 4... cxd4 {[%clk 0:02:59.4]} 5. exd4 {[%clk
0:03:00.5]} 5... b6 {[%clk 0:02:59.9]} 6. Nbd2 {[%clk 0:02:58.5]} 6... Be7
{[%clk 0:03:00.3]} 7. c3 {[%clk 0:02:54.6]} 7... O-O {[%clk 0:03:00.4]} 8. Bd3
{[%clk 0:02:55.1]} 8... Ba6 {[%clk 0:03:00.9]} 9. Bxa6 {[%clk 0:02:53.9]} 9...
Nxa6 {[%clk 0:03:01.8]} 10. O-O {[%clk 0:02:54.5]} 10... Qc8 {[%clk 0:03:01.6]}
11. Re1 {[%clk 0:02:54.3]} 11... Qb7 {[%clk 0:03:02.1]} 12. Ne5 {[%clk
0:02:52.7]} 12... d6 {[%clk 0:03:00.6]} 13. Nd3 {[%clk 0:02:50.3]} 13... h6
{[%clk 0:02:59.2]} 14. Re3 {[%clk 0:02:46.7]} 14... Nc7 {[%clk 0:02:59.1]} 15.
Rh3 {[%clk 0:02:44.5]} 15... Rfe8 {[%clk 0:02:52.2]} 16. Rg3 {[%clk 0:02:35.2]}
16... Kh7 {[%clk 0:02:44.7]} 17. c4 {[%clk 0:02:11.5]} 17... b5 {[%clk
0:02:41.3]} 18. b3 {[%clk 0:02:10.7]} 18... bxc4 {[%clk 0:02:32.8]} 19. bxc4
{[%clk 0:02:11.6]} 19... Bf8 {[%clk 0:02:29.1]} 20. Rc1 {[%clk 0:02:10.9]} 20...
Rad8 {[%clk 0:02:02.2]} 21. Rh3 {[%clk 0:02:01.7]} 21... e5 {[%clk 0:01:05.2]}
22. dxe5 {[%clk 0:01:30.3]} 22... dxe5 {[%clk 0:01:06.1]} 23. Nxe5 {[%clk
0:01:28.9]} 23... Ne6 {[%clk 0:01:04.2]} 24. Be3 {[%clk 0:00:52.9]} 24... Bc5
{[%clk 0:00:43.8]} 25. Qc2+ {[%clk 0:00:19.6]} 25... Kg8 {[%clk 0:00:42.5]} 26.
Bxc5 {[%clk 0:00:19.6]} 26... Nxc5 {[%clk 0:00:43.2]} 27. Ndf3 {[%clk
0:00:19.8]} 27... Re6 {[%clk 0:00:18.8]} 28. Rg3 {[%clk 0:00:19.2]} 28... Rde8
{[%clk 0:00:17.9]} 29. Re1 {[%clk 0:00:19.2]} 29... Nfe4 {[%clk 0:00:12.9]} 30.
Rg4 {[%clk 0:00:13.9]} 30... Rxe5 {[%clk 0:00:11.9]} 31. Nxe5 {[%clk 0:00:14.2]}
31... Rxe5 {[%clk 0:00:12.8]} 32. f3 {[%clk 0:00:14.5]} 32... f5 {[%clk
0:00:05.3]} 33. Rg6 {[%clk 0:00:11.1]} 33... Nd3 {[%clk 0:00:04.7]} 34. Qxd3
{[%clk 0:00:08.7]} 34... Qb6+ {[%clk 0:00:01.4]} 35. Rxb6 {[%clk 0:00:08.3]} 1-0